bitfinex/quotes_BTCUSD_20241123
["timestamp","ask_amount","ask_price","bid_price","bid_amount"]
[1732362723223,0.92522549,98166.0,98158.0,0.05078484]
[1732362724336,0.91703143,98166.0,98158.0,0.05078484]
[1732362724545,0.91703143,98166.0,98156.0,0.05065936]
[1732362726734,0.0798,98165.0,98156.0,0.05065936]
[1732362729374,0.0798,98165.0,98156.0,0.05151946]
[1732362730667,0.0798,98165.0,98158.0,0.05078484]
[1732362730886,0.05692466,98165.0,98160.0,0.05086775]
[1732362731107,0.05692466,98165.0,98157.0,0.05052618]
[1732362734643,0.0189727,98164.0,98157.0,0.05052618]
[1732362734871,0.0189727,98163.0,98157.0,0.05052618]
[1732362735112,0.0189727,98162.0,98157.0,0.05052618]
[1732362735307,0.0189727,98161.0,98157.0,0.05052618]
[1732362735541,0.0189727,98160.0,98157.0,0.05052618]
[1732362735752,0.0189727,98159.0,98157.0,0.05052618]
[1732362735968,0.05692466,98165.0,98157.0,0.05052618]
[1732362735969,0.0189727,98158.0,98157.0,0.05052618]
[1732362736822,0.0189727,98158.0,98152.0,0.25043174]
[1732362737035,0.0189727,98157.0,98152.0,0.25043174]
[1732362737259,0.0189727,98156.0,98152.0,0.25043174]
[1732362737488,0.0189727,98155.0,98152.0,0.25043174]
[1732362737731,0.0189727,98154.0,98152.0,0.25043174]
[1732362737939,0.0189727,98153.0,98152.0,0.25043174]
[1732362739135,0.0189727,98153.0,98152.0,0.27343174]
[1732362740241,0.0165727,98153.0,98152.0,0.27343174]
[1732362740689,0.0482,98160.0,98153.0,0.023]
[1732362740894,0.0490204,98160.0,98154.0,0.05077585]
[1732362742667,0.0490204,98160.0,98156.0,0.05099186]
[1732362742882,0.0490204,98160.0,98155.0,0.023]
[1732362743963,0.0490204,98160.0,98156.0,0.05099186]
[1732362744193,0.0017204,98160.0,98156.0,0.05099186]
[1732362746824,0.0017204,98160.0,98157.0,0.09098934]
[1732362747302,0.0017204,98160.0,98158.0,0.14135008]
[1732362748182,0.0017204,98160.0,98159.0,0.09098934]
[1732362748388,0.0017204,98160.0,98159.0,0.14172781]
[1732362749256,0.0017204,98160.0,98159.0,0.05073847]
[1732362750367,0.0321359,98160.0,98159.0,0.18720284]
[1732362750596,0.0321359,98160.0,98159.0,0.18736016]
[1732362750832,0.06255136,98160.0,98159.0,0.18736016]
[1732362751302,0.03213586,98160.0,98159.0,0.05073847]
[1732362751759,0.03204586,98160.0,98159.0,0.05073847]
[1732362752208,0.03204586,98160.0,98159.0,0.27844129]
[1732362752459,0.05105539,98160.0,98159.0,0.27844129]
[1732362753164,0.05105539,98160.0,98159.0,0.05073847]
[1732362753381,0.05105539,98160.0,98153.0,0.05050452]
[1732362753635,0.02656549,98159.0,98153.0,0.05050452]
[1732362753872,0.0016304,98160.0,98153.0,0.05050452]
[1732362754325,0.0016304,98160.0,98157.0,0.1824947]
[1732362754547,0.0016304,98160.0,98158.0,0.05067172]
[1732362754758,0.0016304,98160.0,98157.0,0.05045286]
[1732362754977,0.0472,98158.0,98156.0,0.09125287]
[1732362755191,0.0472,98158.0,98152.0,0.05082237]
[1732362755405,0.0826,98157.0,98152.0,0.05082237]
[1732362756446,0.07371866,98157.0,98152.0,0.05082237]
[1732362763788,0.03033337,98156.0,98152.0,0.05082237]
[1732362764006,0.03033337,98155.0,98152.0,0.05082237]
[1732362764247,0.07371866,98157.0,98152.0,0.05082237]
[1732362764504,0.03033329,98154.0,98152.0,0.05082237]
[1732362765148,0.03033329,98153.0,98152.0,0.05082237]
[1732362765638,0.04928839,98153.0,98152.0,0.05082237]
[1732362766804,0.03912772,98153.0,98152.0,0.05082237]
[1732362769868,0.05720495,98157.0,98152.0,0.05082237]
[1732362770079,0.00156061,98157.0,98152.0,0.05082237]
[1732362770290,0.01544342,98158.0,98152.0,0.05082237]
[1732362770466,0.00825359,98158.0,98152.0,0.05082237]
[1732362775578,0.00825359,98158.0,98152.0,0.05168257]
[1732362779839,0.03035461,98157.0,98152.0,0.05168257]
[1732362780055,0.00825359,98158.0,98152.0,0.05168257]
[1732362780056,0.03035461,98156.0,98152.0,0.05168257]
[1732362780267,0.03035461,98155.0,98152.0,0.05168257]
[1732362780682,0.03035461,98154.0,98152.0,0.05168257]
[1732362781325,0.03035461,98153.0,98152.0,0.05168257]
[1732362781950,0.04933409,98153.0,98152.0,0.05168257]
[1732362786923,0.04941141,98153.0,98152.0,0.05168257]
[1732362787350,0.05113181,98153.0,98152.0,0.05168257]
[1732362789982,0.06381066,98153.0,98152.0,0.05168257]
[1732362790186,0.06381728,98153.0,98152.0,0.05168257]
[1732362792001,0.05113843,98153.0,98152.0,0.05168257]
[1732362793557,0.05114146,98153.0,98152.0,0.05168257]
[1732362795310,0.05114146,98153.0,98141.0,0.023]
[1732362795553,0.03041436,98151.0,98144.0,0.023]
[1732362795769,0.03041296,98150.0,98144.0,0.023]
[1732362795996,0.04942106,98149.0,98144.0,0.023]
[1732362796221,0.04942106,98148.0,98145.0,0.05018717]
[1732362796401,0.04942106,98147.0,98145.0,0.05018717]
[1732362796842,0.04942106,98146.0,98145.0,0.05018717]
[1732362799834,0.04942106,98146.0,98145.0,0.05104737]
[1732362802043,0.06209985,98146.0,98145.0,0.05104737]
[1732362802932,0.04942106,98146.0,98145.0,0.05104737]
[1732362803430,0.04942442,98146.0,98145.0,0.05104737]
[1732362803869,0.04942442,98146.0,98142.0,0.09126425]
[1732362804079,0.03041503,98146.0,98145.0,0.040623]
[1732362804289,0.04942464,98146.0,98145.0,0.0915364]
[1732362804499,0.04942497,98146.0,98145.0,0.0915364]
[1732362806797,0.0817,98152.0,98145.0,0.0915364]
[1732362807048,0.01267881,98146.0,98145.0,0.0915364]
[1732362807268,0.04309548,98146.0,98145.0,0.0915364]
[1732362807695,0.0621059,98146.0,98145.0,0.0915364]
[1732362810036,0.04942835,98146.0,98145.0,0.0915364]
[1732362812059,0.05114915,98146.0,98145.0,0.0915364]
[1732362813420,0.05114922,98146.0,98145.0,0.0915364]
[1732362816939,0.05114922,98146.0,98145.0,0.22843278]
[1732362818756,0.0017208,98146.0,98145.0,0.22843278]
[1732362818932,0.0017208,98146.0,98145.0,0.25397064]
[1732362819811,0.02572831,98152.0,98145.0,0.11707426]
[1732362820014,0.02572831,98152.0,98146.0,0.09126887]
[1732362821087,0.02572831,98152.0,98147.0,0.05038285]
[1732362823144,0.0190113,98151.0,98147.0,0.05038285]
[1732362824831,0.04942939,98151.0,98147.0,0.05038285]
[1732362825045,0.02572831,98152.0,98147.0,0.05038285]
[1732362825862,0.0017206,98151.0,98147.0,0.05038285]
[1732362826286,0.05115368,98151.0,98147.0,0.05038285]
[1732362826529,0.0017206,98151.0,98147.0,0.05038285]
[1732362828714,0.03802487,98150.0,98147.0,0.05038285]
[1732362828977,0.01901235,98149.0,98147.0,0.05038285]
[1732362829192,0.01901235,98149.0,98146.0,0.05067544]
[1732362829400,0.01901235,98148.0,98146.0,0.05067544]
[1732362829612,0.04943097,98147.0,98146.0,0.05067544]
[1732362830046,0.04943097,98147.0,98146.0,0.141945]
[1732362830509,0.04943097,98147.0,98146.0,0.14194503]
[1732362831379,0.04943097,98147.0,98145.0,0.05050163]
[1732362831630,0.03213988,98151.0,98145.0,0.05050163]
[1732362831631,0.04943097,98146.0,98145.0,0.05050163]
[1732362831845,0.07984998,98146.0,98145.0,0.05050163]
[1732362832034,0.0791586,98146.0,98145.0,0.05050163]
[1732362832262,0.04943092,98146.0,98145.0,0.05050163]
[1732362832472,0.04943092,98146.0,98145.0,0.040622]
[1732362832853,0.04943092,98146.0,98145.0,0.09116207]
[1732362837949,0.04943091,98146.0,98145.0,0.09116207]
[1732362838379,0.01901188,98146.0,98145.0,0.09116207]
[1732362838829,0.03169036,98146.0,98145.0,0.09202237]
[1732362839453,0.03130753,98146.0,98145.0,0.11502237]
[1732362839882,0.01862905,98146.0,98145.0,0.1304564]
[1732362841194,0.01862905,98146.0,98145.0,0.35838593]
[1732362841410,0.0313055,98146.0,98145.0,0.1304564]
[1732362841654,0.0017206,98151.0,98146.0,0.023]
[1732362841871,0.03041137,98149.0,98148.0,0.023]
[1732362842092,0.07347822,98149.0,98148.0,0.07343478]
[1732362842771,0.04306685,98149.0,98148.0,0.07343478]
[1732362843503,0.04306685,98149.0,98146.0,0.05009175]
[1732362843728,0.04306685,98148.0,98146.0,0.05009175]
[1732362843943,0.04306685,98147.0,98146.0,0.05009175]
[1732362848138,0.04304815,98147.0,98146.0,0.05009175]
[1732362850840,0.0017206,98151.0,98146.0,0.05009175]
[1732362851035,0.04303819,98150.0,98146.0,0.05009175]
[1732362851233,0.04303819,98149.0,98146.0,0.05009175]
[1732362851442,0.0017206,98147.0,98146.0,0.05009175]
[1732362851653,0.06373204,98147.0,98146.0,0.05009175]
[1732362851878,0.04605424,98147.0,98146.0,0.05009175]
[1732362852304,0.06372489,98147.0,98146.0,0.05009175]
[1732362852522,0.09407923,98147.0,98146.0,0.05009175]
[1732362857707,0.06372489,98147.0,98146.0,0.05009175]
[1732362863235,0.06372489,98147.0,98146.0,0.05095205]
[1732362866149,0.05104369,98147.0,98146.0,0.05095205]
[1732362868271,0.02069001,98147.0,98146.0,0.05095205]
[1732362868514,0.05104106,98147.0,98146.0,0.05095205]
[1732362869786,0.05104106,98147.0,98138.0,0.05028983]
[1732362869996,0.03035852,98143.0,98139.0,0.023]
[1732362870212,0.07967898,98142.0,98139.0,0.023]
[1732362870426,0.07967898,98142.0,98140.0,0.05084625]
[1732362870427,0.04932046,98141.0,98140.0,0.05084625]
[1732362870632,0.04932046,98141.0,98140.0,0.11446925]
[1732362871495,0.04932046,98141.0,98140.0,0.09146925]
[1732362878266,0.0017206,98147.0,98140.0,0.09146925]
[1732362878506,0.04942455,98146.0,98140.0,0.09146925]
[1732362878731,0.04942455,98145.0,98140.0,0.09146925]
[1732362878949,0.03041608,98143.0,98139.0,0.023]
[1732362879162,0.04942455,98142.0,98141.0,0.040623]
[1732362879879,0.04942455,98142.0,98141.0,0.09073203]
[1732362880121,0.04942455,98142.0,98141.0,0.09515641]
[1732362882215,0.01901046,98142.0,98141.0,0.09515641]
[1732362882667,0.0494272,98142.0,98141.0,0.09515641]
[1732362888567,0.04943304,98142.0,98141.0,0.09515641]
[1732362888788,0.08111646,98142.0,98141.0,0.09515641]
[1732362893411,0.08111646,98142.0,98141.0,0.11815641]
[1732362897980,0.08283726,98142.0,98141.0,0.11815641]
[1732362898437,0.0410443,98142.0,98141.0,0.11815641]
[1732362899119,0.03093476,98142.0,98141.0,0.11815641]
[1732362900028,0.02429651,98143.0,98142.0,0.023]
[1732362900250,0.02429651,98143.0,98142.0,0.07316109]
[1732362900466,0.02429651,98143.0,98133.0,0.16400304]
[1732362900735,0.09949651,98143.0,98142.0,0.024297]
[1732362900958,0.09949651,98143.0,98142.0,0.07453924]
[1732362909441,0.10121731,98143.0,98142.0,0.07453924]
[1732362909885,0.13163502,98143.0,98142.0,0.07453924]
[1732362911066,0.1506469,98143.0,98142.0,0.07453924]
[1732362911299,0.13293224,98143.0,98142.0,0.07453924]
[1732362913248,0.05773224,98143.0,98142.0,0.07453924]
[1732362913475,0.05115039,98143.0,98142.0,0.07453924]
[1732362913707,0.01054839,98143.0,98142.0,0.07453924]
[1732362913910,0.08663463,98152.0,98142.0,0.07453924]
[1732362914117,0.07939248,98153.0,98142.0,0.12920692]
[1732362914339,0.03168745,98152.0,98142.0,0.14768042]
[1732362914741,0.01136245,98152.0,98142.0,0.14768042]
[1732362914958,0.1165423,98156.0,98142.0,0.14768042]
[1732362915166,0.01136219,98155.0,98144.0,0.0503948]
[1732362915382,0.10757949,98157.0,98149.0,0.05081431]
[1732362915582,0.0316869,98156.0,98149.0,0.05081431]
[1732362919455,0.0316869,98155.0,98149.0,0.05081431]
[1732362919649,0.0316869,98154.0,98149.0,0.05081431]
[1732362919911,0.0316869,98157.0,98149.0,0.05081431]
[1732362920119,0.0316869,98156.0,98149.0,0.05081431]
[1732362920322,0.0316869,98157.0,98149.0,0.05081431]
[1732362920538,0.0316869,98156.0,98149.0,0.05081431]
[1732362920751,0.0113619,98155.0,98149.0,0.05081431]
[1732362920996,0.0113619,98154.0,98149.0,0.05081431]
[1732362921196,0.03168606,98159.0,98149.0,0.05081431]
[1732362921404,0.36854916,98158.0,98149.0,0.06379221]
[1732362921608,0.03168606,98157.0,98149.0,0.06379221]
[1732362921856,0.2036,98161.0,98135.0,0.02473258]
[1732362922064,0.36855094,98160.0,98147.0,0.05466768]
[1732362922280,0.34822594,98159.0,98151.0,0.05016219]
[1732362922526,0.03168626,98158.0,98151.0,0.05016219]
[1732362922745,0.03168626,98160.0,98151.0,0.05016219]
[1732362922952,0.03168626,98159.0,98151.0,0.05016219]
[1732362923144,0.03168626,98160.0,98151.0,0.05016219]
[1732362923325,0.2036,98161.0,98151.0,0.05016219]
[1732362923326,0.03168626,98159.0,98151.0,0.05016219]
[1732362923530,0.03168626,98160.0,98151.0,0.05016219]
[1732362923753,0.03168626,98159.0,98151.0,0.06580083]
[1732362923967,0.03168626,98160.0,98151.0,0.06580083]
[1732362924202,0.03168626,98159.0,98151.0,0.06580083]
[1732362924426,0.03168626,98160.0,98151.0,0.06580083]
[1732362924648,0.13689094,98157.0,98151.0,0.05016219]
[1732362924861,0.13689094,98158.0,98151.0,0.05016219]
[1732362925079,0.09124222,98154.0,98151.0,0.05016219]
[1732362925514,0.09124222,98153.0,98151.0,0.05016219]
[1732362925730,0.07091622,98153.0,98151.0,0.05016219]
[1732362925941,0.13689094,98157.0,98151.0,0.05016219]
[1732362926237,0.01901216,98156.0,98151.0,0.05016219]
[1732362926447,0.01901216,98155.0,98151.0,0.05016219]
[1732362926659,0.04943096,98154.0,98151.0,0.05016219]
[1732362926841,0.04943096,98153.0,98151.0,0.05016219]
[1732362927047,0.04943096,98152.0,98151.0,0.05016219]
[1732362927358,0.02915496,98152.0,98151.0,0.05016219]
[1732362927801,0.08612896,98152.0,98151.0,0.05016219]
[1732362928000,0.06580296,98152.0,98151.0,0.05016219]
[1732362928218,0.13689094,98157.0,98151.0,0.05016219]
[1732362928483,0.09702417,98157.0,98151.0,0.05016219]
[1732362928685,0.0571574,98157.0,98151.0,0.05016219]
[1732362929329,0.0469,98160.0,98151.0,0.05016219]
[1732362929536,0.03168605,98159.0,98151.0,0.05016219]
[1732362931225,0.11218605,98159.0,98151.0,0.05016219]
[1732362931435,0.03168605,98158.0,98151.0,0.05016219]
[1732362933300,0.0017204,98157.0,98151.0,0.05016219]
[1732362933538,0.03168605,98156.0,98151.0,0.05016219]
[1732362933775,0.0017204,98157.0,98151.0,0.05016219]
[1732362934264,0.03168738,98156.0,98151.0,0.05016219]
[1732362934929,0.0017204,98157.0,98151.0,0.05016219]
[1732362935863,0.09297257,98157.0,98151.0,0.05016219]
[1732362936541,0.09125217,98156.0,98151.0,0.05016219]
[1732362936997,0.09297257,98157.0,98151.0,0.05016219]
[1732362937429,0.0017204,98157.0,98151.0,0.05016219]
[1732362938397,0.0316842,98156.0,98151.0,0.05016219]
[1732362938634,0.09125217,98154.0,98151.0,0.05016219]
[1732362938856,0.0316842,98153.0,98151.0,0.05016219]
[1732362940207,0.01900978,98152.0,98151.0,0.05016219]
[1732362940441,0.05069398,98152.0,98151.0,0.05016219]
[1732362941884,0.05069444,98152.0,98151.0,0.05016219]
[1732362942094,0.05069451,98152.0,98151.0,0.05016219]
[1732362943863,0.0316842,98152.0,98151.0,0.05016219]
[1732362944517,0.0316842,98154.0,98151.0,0.05102239]
[1732362946079,0.0316842,98154.0,98138.0,0.0509309]
[1732362946298,0.0017204,98157.0,98145.0,0.05095821]
[1732362946554,0.0463,98156.0,98150.0,0.05072418]
[1732362946781,0.0463,98156.0,98148.0,0.0504265]
[1732362947264,0.13754383,98156.0,98148.0,0.0504265]
[1732362947511,0.0463,98156.0,98148.0,0.0504265]
[1732362949846,0.01901407,98155.0,98148.0,0.0504265]
[1732362950076,0.01901407,98154.0,98148.0,0.0504265]
[1732362950287,0.01901407,98153.0,98148.0,0.0504265]
[1732362950517,0.01901407,98152.0,98148.0,0.0504265]
[1732362950763,0.01901407,98151.0,98148.0,0.0504265]
[1732362951002,0.01901407,98150.0,98149.0,0.07367617]
[1732362951225,0.01901407,98150.0,98141.0,0.08242452]
[1732362951449,0.01901407,98150.0,98142.0,0.05016977]
[1732362951715,0.01901407,98149.0,98142.0,0.05016977]
[1732362951930,0.01901407,98148.0,98142.0,0.05016977]
[1732362952116,0.01901407,98147.0,98142.0,0.05016977]
[1732362952242,0.01901407,98146.0,98142.0,0.07164703]
[1732362952471,0.01901407,98145.0,98142.0,0.07164703]
[1732362952675,0.01901407,98144.0,98142.0,0.07164703]
[1732362952874,0.01901407,98143.0,98142.0,0.05016977]
[1732362955468,0.0190124,98143.0,98140.0,0.05018562]
[1732362955710,0.0190124,98142.0,98140.0,0.05018562]
[1732362955922,0.0190124,98141.0,98140.0,0.07318562]
[1732362961697,0.0449864,98147.0,98140.0,0.05018562]
[1732362962601,0.0449864,98147.0,98139.0,0.0500136]
[1732362966215,0.06663105,98147.0,98139.0,0.0500136]
[1732362966426,0.0481,98145.0,98138.0,0.0506835]
[1732362966633,0.03169246,98144.0,98138.0,0.0506835]
[1732362966880,0.0481,98143.0,98138.0,0.0506835]
[1732362967093,0.1293,98142.0,98138.0,0.0506835]
[1732362967309,0.0481,98141.0,98138.0,0.0506835]
[1732362971733,0.0316734,98140.0,98138.0,0.0506835]
[1732362982144,0.0316734,98140.0,98138.0,0.0515438]
[1732362982783,0.0481,98141.0,98138.0,0.0515438]
[1732362986399,0.03166435,98140.0,98138.0,0.0515438]
[1732362986621,0.0481,98141.0,98138.0,0.0515438]
[1732362987894,0.03166438,98140.0,98138.0,0.0515438]
[1732362989743,0.03160057,98140.0,98138.0,0.0515438]
[1732362991140,0.0481,98141.0,98138.0,0.0515438]
[1732362991585,0.04911899,98141.0,98132.0,0.05044234]
[1732362991906,0.0481,98141.0,98132.0,0.05044234]
[1732362993110,0.04911899,98141.0,98132.0,0.05044234]
[1732362995467,0.05083999,98141.0,98132.0,0.05044234]
[1732363001795,0.03169224,98140.0,98132.0,0.05044234]
[1732363002234,0.03169224,98140.0,98134.0,0.05018082]
[1732363002452,0.03169224,98140.0,98135.0,0.023]
[1732363002896,0.03271123,98140.0,98135.0,0.023]
[1732363003138,0.00101899,98140.0,98135.0,0.023]
[1732363003356,0.00101899,98140.0,98139.0,0.023]
[1732363004047,0.03270807,98140.0,98139.0,0.023]
[1732363004293,0.03270807,98140.0,98139.0,0.07318747]
[1732363004544,0.00101899,98140.0,98139.0,0.07318747]
[1732363005473,0.0327082,98140.0,98139.0,0.07318747]
[1732363005707,0.03270864,98140.0,98139.0,0.07318747]
[1732363007294,0.03270864,98140.0,98139.0,0.05018747]
[1732363007927,0.03270864,98140.0,98132.0,0.023]
[1732363008158,0.07968965,98139.0,98132.0,0.023]
[1732363008398,0.03168965,98138.0,98132.0,0.023]
[1732363008646,0.03168965,98138.0,98134.0,0.023]
[1732363010720,0.03168965,98138.0,98136.0,0.023]
[1732363011166,0.03168965,98138.0,98137.0,0.05044462]
[1732363016712,0.048,98139.0,98119.0,0.05001793]
[1732363016918,0.048,98139.0,98128.0,0.10933536]
[1732363017554,0.048,98139.0,98129.0,0.05051007]
[1732363018729,0.048,98139.0,98129.0,0.20051007]
[1732363022006,0.048,98139.0,98132.0,0.023]
[1732363022099,0.048,98139.0,98129.0,0.05053773]
[1732363022323,0.048,98139.0,98130.0,0.01417272]
[1732363022645,0.048,98139.0,98131.0,0.05051469]
[1732363022881,0.048,98139.0,98130.0,0.05063596]
[1732363023501,0.0190176,98138.0,98130.0,0.05063596]
[1732363023757,0.0190176,98137.0,98130.0,0.05063596]
[1732363023975,0.0190176,98136.0,98130.0,0.05063596]
[1732363024215,0.0190176,98135.0,98132.0,0.05015921]
[1732363024449,0.0190176,98134.0,98132.0,0.05015921]
[1732363024572,0.0190176,98133.0,98132.0,0.05015921]
[1732363024799,0.048,98139.0,98132.0,0.08270838]
[1732363025000,0.01901775,98138.0,98132.0,0.08270838]
[1732363025215,0.01901775,98137.0,98132.0,0.08270838]
[1732363025423,0.01901775,98136.0,98132.0,0.08270838]
[1732363025621,0.01901775,98135.0,98132.0,0.08270838]
[1732363025824,0.01901775,98134.0,98132.0,0.08270838]
[1732363026028,0.01901775,98133.0,98132.0,0.05015921]
[1732363026303,0.01901775,98133.0,98131.0,0.05051469]
[1732363026634,0.06451775,98132.0,98131.0,0.05051469]
[1732363029000,0.0455,98131.0,98124.0,0.0502754]
[1732363029190,0.0455,98129.0,98124.0,0.0502754]
[1732363029443,0.02003674,98128.0,98124.0,0.0502754]
[1732363029642,0.06451775,98127.0,98124.0,0.0502754]
[1732363029758,0.01901775,98126.0,98124.0,0.0502754]
[1732363029992,0.00886281,98125.0,98124.0,0.0502754]
[1732363030210,0.05436281,98125.0,98124.0,0.0502754]
[1732363033664,0.05436281,98125.0,98124.0,0.0511359]
[1732363034095,0.0455,98125.0,98124.0,0.0511359]
[1732363041479,0.04515937,98125.0,98124.0,0.0511359]
[1732363041921,0.06415453,98125.0,98124.0,0.0511359]
[1732363042598,0.06415453,98125.0,98124.0,0.05633554]
[1732363044678,0.06415453,98125.0,98124.0,0.0511359]
[1732363046337,0.06587553,98125.0,98124.0,0.0511359]
[1732363047603,0.06587388,98125.0,98124.0,0.0511359]
[1732363051021,0.06587673,98125.0,98124.0,0.0511359]
[1732363054119,0.04688037,98125.0,98124.0,0.0511359]
[1732363054359,0.06588031,98125.0,98124.0,0.0511359]
[1732363054978,1.31557387,98143.0,98124.0,0.05633554]
[1732363055197,0.03166187,98142.0,98124.0,0.05633554]
[1732363057313,0.001721,98125.0,98124.0,0.05633554]
[1732363058575,0.001721,98125.0,98124.0,0.0511359]
[1732363059594,0.001721,98125.0,98116.0,0.15]
[1732363059595,0.001721,98125.0,98116.0,0.0508269]
[1732363059818,0.001721,98125.0,98117.0,0.023]
[1732363060039,0.001721,98125.0,98118.0,0.05001401]
[1732363060272,0.001721,98125.0,98121.0,0.05066022]
[1732363060499,0.001721,98125.0,98124.0,0.023]
[1732363060928,0.001721,98125.0,98122.0,0.023]
[1732363061350,0.001721,98125.0,98124.0,0.023]
[1732363061582,0.001721,98125.0,98124.0,0.07370785]
[1732363069339,0.001721,98125.0,98124.0,0.07456835]
[1732363070903,0.02014572,98130.0,98118.0,0.023]
[1732363071131,1.06387137,98143.0,98119.0,0.05021395]
[1732363071342,1.06387137,98143.0,98121.0,0.05060795]
[1732363071987,1.06387137,98143.0,98134.0,0.05025542]
[1732363073110,1.06387137,98143.0,98133.0,0.10933536]
[1732363073111,1.06387137,98143.0,98137.0,0.023]
[1732363073550,1.06387137,98143.0,98139.0,0.023]
[1732363073769,1.06387137,98143.0,98142.0,0.07340045]
[1732363076845,1.06387137,98143.0,98142.0,0.11476923]
[1732363077075,1.06387137,98143.0,98142.0,0.26476923]
[1732363077732,1.06387137,98143.0,98142.0,0.29124615]
[1732363081134,1.0955361,98143.0,98142.0,0.26476923]
[1732363081606,1.0972573,98143.0,98142.0,0.26476923]
[1732363083385,1.01549138,98143.0,98142.0,0.26476923]
[1732363083608,0.81241139,98143.0,98142.0,0.26476923]
[1732363083845,0.81241139,98143.0,98142.0,0.29124615]
[1732363085192,0.6093314,98143.0,98142.0,0.29124615]
[1732363088604,0.6093314,98143.0,98142.0,0.26476923]
[1732363089079,0.59319585,98143.0,98142.0,0.26476923]
[1732363089518,0.58322497,98143.0,98142.0,0.26476923]
[1732363089754,0.56227449,98143.0,98142.0,0.26476923]
[1732363089993,0.35829543,98143.0,98142.0,0.26476923]
[1732363090453,0.35829543,98143.0,98142.0,0.09123273]
[1732363092043,0.35829543,98143.0,98142.0,0.28331583]
[1732363092774,0.40579543,98143.0,98142.0,0.28331583]
[1732363093008,0.40579543,98143.0,98142.0,0.26634395]
[1732363093495,0.35829543,98143.0,98142.0,0.26634395]
[1732363093970,0.37729071,98143.0,98142.0,0.26634395]
[1732363094393,0.42479071,98143.0,98142.0,0.26634395]
[1732363100170,0.45645758,98143.0,98142.0,0.26634395]
[1732363100816,0.53625758,98143.0,98142.0,0.26634395]
[1732363103773,0.45647619,98143.0,98142.0,0.26634395]
[1732363105093,0.41643238,98143.0,98142.0,0.26634395]
[1732363105324,0.21885048,98143.0,98142.0,0.07426085]
[1732363109443,0.21885264,98143.0,98142.0,0.07426085]
[1732363115296,0.21885264,98143.0,98134.0,0.15]
[1732363115297,0.21885264,98143.0,98135.0,0.07340454]
[1732363115529,0.21885264,98143.0,98134.0,0.050302]
[1732363115751,0.01901605,98142.0,98134.0,0.050302]
[1732363116430,0.01901605,98141.0,98134.0,0.050302]
[1732363116657,0.01901605,98140.0,98134.0,0.050302]
[1732363116886,0.01901605,98139.0,98134.0,0.050302]
[1732363117106,0.01901605,98138.0,98134.0,0.050302]
[1732363117344,0.01901605,98137.0,98134.0,0.050302]
[1732363117568,0.01901605,98136.0,98134.0,0.2011623]
[1732363117794,0.01901605,98135.0,98134.0,0.2011623]
[1732363118968,0.01901605,98135.0,98132.0,0.05013167]
[1732363119205,0.19983659,98143.0,98132.0,0.05013167]
[1732363119206,0.01901605,98134.0,98132.0,0.05013167]
[1732363119459,0.01901605,98133.0,98132.0,0.05013167]
[1732363122881,0.01901605,98133.0,98132.0,0.22956793]
[1732363124344,0.01901948,98133.0,98132.0,0.05013167]
[1732363124692,0.01901948,98133.0,98132.0,0.07313167]
[1732363124786,0.01901948,98133.0,98132.0,0.22313167]
[1732363125228,0.04945125,98133.0,98132.0,0.22313167]
[1732363126657,0.04945125,98133.0,98128.0,0.0455]
[1732363126897,0.04945125,98132.0,98129.0,0.02498417]
[1732363127117,0.01901948,98131.0,98129.0,0.02498417]
[1732363127349,0.04945125,98130.0,98129.0,0.02498417]
[1732363127579,0.15233659,98143.0,98129.0,0.02498417]
[1732363127796,0.04945044,98142.0,98133.0,0.10933536]
[1732363128027,0.04945044,98141.0,98134.0,0.05039176]
[1732363128252,0.15233659,98143.0,98134.0,0.06837371]
[1732363128485,0.04945042,98142.0,98134.0,0.06837371]
[1732363128707,0.15233659,98143.0,98134.0,0.21837371]
[1732363128928,0.04944884,98142.0,98136.0,0.0481]
[1732363129157,0.15233659,98143.0,98137.0,0.0506373]
[1732363129158,0.04944884,98141.0,98137.0,0.0506373]
[1732363129372,0.04944884,98140.0,98137.0,0.0506373]
[1732363129605,0.01901878,98139.0,98138.0,0.016585]
[1732363129877,0.04944884,98139.0,98138.0,0.016585]
[1732363130121,0.04428213,98139.0,98138.0,0.016585]
[1732363130335,0.03784756,98139.0,98138.0,0.21720373]
[1732363130808,0.02254758,98139.0,98138.0,0.23197179]
[1732363131031,0.0140885,98139.0,98138.0,0.21720373]
[1732363131286,0.07446801,98143.0,98138.0,0.06720373]
[1732363131512,0.0017212,98143.0,98142.0,0.05012606]
[1732363131744,0.14431182,98146.0,98142.0,0.20012606]
[1732363131976,0.14431182,98146.0,98144.0,0.20052498]
[1732363133394,0.14431182,98146.0,98139.0,0.11107907]
[1732363133395,0.14431182,98146.0,98143.0,0.05033219]
[1732363133624,0.14431182,98146.0,98139.0,0.18597907]
[1732363133625,0.14431182,98146.0,98140.0,0.05095674]
[1732363133885,0.14431182,98146.0,98141.0,0.03580885]
[1732363134348,0.14431182,98146.0,98142.0,0.05012606]
[1732363137503,0.14431182,98146.0,98139.0,0.05001285]
[1732363141345,0.03038776,98145.0,98139.0,0.05001285]
[1732363141628,0.03038776,98144.0,98139.0,0.05001285]
[1732363142096,0.14431182,98146.0,98139.0,0.05001285]
[1732363142097,0.03038776,98143.0,98139.0,0.05001285]
[1732363142579,0.03038776,98142.0,98139.0,0.05001285]
[1732363142796,0.0493799,98141.0,98139.0,0.05001285]
[1732363143023,0.0493799,98140.0,98139.0,0.05001285]
[1732363143249,0.0493799,98140.0,98136.0,0.20065985]
[1732363143489,0.03038776,98139.0,98136.0,0.20065985]
[1732363143726,0.14603282,98146.0,98136.0,0.20065985]
[1732363143727,0.14603282,98146.0,98139.0,0.15]
[1732363144221,0.14603282,98146.0,98140.0,0.05095674]
[1732363144702,0.04937221,98145.0,98140.0,0.05095674]
[1732363144924,0.0303829,98144.0,98141.0,0.204573]
[1732363145157,0.0303829,98143.0,98141.0,0.204573]
[1732363145461,0.01898931,98142.0,98141.0,0.204573]
[1732363145553,0.01898931,98142.0,98141.0,0.25530128]
[1732363146000,0.04937221,98142.0,98141.0,0.25530128]
[1732363147572,0.04937221,98142.0,98141.0,0.20072828]
[1732363147797,0.04937221,98142.0,98141.0,0.05072828]
[1732363148712,0.04937221,98142.0,98138.0,0.05061873]
[1732363148935,0.04937221,98141.0,98138.0,0.05061873]
[1732363149158,0.14603282,98146.0,98139.0,0.22821436]
[1732363149159,0.04937221,98140.0,98139.0,0.22821436]
[1732363150530,0.04937221,98140.0,98139.0,0.27822721]
[1732363151199,0.04937221,98140.0,98139.0,0.29988717]
[1732363151416,0.02669884,98140.0,98139.0,0.27822721]
[1732363151937,0.01898931,98140.0,98139.0,0.27822721]
[1732363152171,0.14603282,98146.0,98139.0,0.27822721]
[1732363152414,0.01898205,98145.0,98139.0,0.05001285]
[1732363152657,0.01898205,98144.0,98139.0,0.05001285]
[1732363152874,0.01898205,98143.0,98139.0,0.05001285]
[1732363153090,0.01898205,98142.0,98140.0,0.04628822]
[1732363153335,0.01898205,98142.0,98141.0,0.05072828]
[1732363153558,0.01898565,98142.0,98141.0,0.09135347]